{"text_format":"1","workbook":"xlsx","n_sheets":3,"sheets":["Popis zaliha u skladištu","Popis za odabir zaliha","Traženje regala"],"not_rendered":{"charts":0,"images":0,"macros":1,"external_links":0,"defined_names":8,"comments":0,"pivot_tables":0},"unopened":[],"bounds":{"document_bytes":16777216,"sheet_cells":100000,"rows_first":2000,"rows_last":500,"rows_between":2000,"halvings":0,"cell_chars":16384,"cell_head_chars":4096},"cells_cut":0,"cells_raw":0,"read":"whole","date_system":"1900"}

{"sheet":"Popis zaliha u skladištu","index":0,"n_rows":15,"n_cols":11,"rows_kept":15,"cut":false,"hidden":false,"merged":[]}
[null,"POPIS ZALIHA U SKLADIŠTU"]
[null,"UKUPNA VRIJEDNOST ZALIHA:","STAVKE ZALIHA:","BROJ REGALA:","POPIS ZA ODABIR ZALIHA","TRAŽENJE REGALA"]
[null,{"$f":"SUM(PopisZaliha[VRIJEDNOST ZALIHA:])","v":4649},{"$f":"COUNTA(PopisZaliha[OPIS])","v":11},{"$f":"SUMPRODUCT((1/COUNTIF(PopisZaliha['# REGALA],PopisZaliha['# REGALA]&\"\")))","v":6}]
[null,"SKU","OPIS","# REGALA","MJESTO","JEDINICA","KOLIČINA","PONOVNA NARUDŽBA KOLIČINE","TROŠKOVI","VRIJEDNOST ZALIHA:","PONOVNA NARUDŽBA"]
[null,"SP7875","Stavka 1","T345",{"$f":"IFERROR(VLOOKUP(PopisZaliha[[#This Row],['# REGALA]],TraženjeRegala[],3,FALSE),\"\")","v":"Redak 2, mjesto 1"},"Svaki",20,10,30,{"$f":"PopisZaliha[[#This Row],[KOLIČINA]]*PopisZaliha[[#This Row],[TROŠKOVI]]","v":600},{"$f":"IFERROR(IF(PopisZaliha[[#This Row],[KOLIČINA]]<=PopisZaliha[[#This Row],[PONOVNA NARUDŽBA KOLIČINE]],1,0),0)","v":0}]
[null,"TR87680","Stavka 2","T345",{"$f":"IFERROR(VLOOKUP(PopisZaliha[[#This Row],['# REGALA]],TraženjeRegala[],3,FALSE),\"\")","v":"Redak 2, mjesto 1"},"Svaki",30,15,40,{"$f":"PopisZaliha[[#This Row],[KOLIČINA]]*PopisZaliha[[#This Row],[TROŠKOVI]]","v":1200},{"$f":"IFERROR(IF(PopisZaliha[[#This Row],[KOLIČINA]]<=PopisZaliha[[#This Row],[PONOVNA NARUDŽBA KOLIČINE]],1,0),0)","v":0}]
[null,"MK676554","Stavka 3","T5789",{"$f":"IFERROR(VLOOKUP(PopisZaliha[[#This Row],['# REGALA]],TraženjeRegala[],3,FALSE),\"\")","v":"Redak 1, mjesto 1"},"Svaki",10,5,5,{"$f":"PopisZaliha[[#This Row],[KOLIČINA]]*PopisZaliha[[#This Row],[TROŠKOVI]]","v":50},{"$f":"IFERROR(IF(PopisZaliha[[#This Row],[KOLIČINA]]<=PopisZaliha[[#This Row],[PONOVNA NARUDŽBA KOLIČINE]],1,0),0)","v":0}]
[null,"YE98767","Stavka 4","T9876",{"$f":"IFERROR(VLOOKUP(PopisZaliha[[#This Row],['# REGALA]],TraženjeRegala[],3,FALSE),\"\")","v":"Redak 3, mjesto 2"},"Kutija (10 kom.)",40,10,15,{"$f":"PopisZaliha[[#This Row],[KOLIČINA]]*PopisZaliha[[#This Row],[TROŠKOVI]]","v":600},{"$f":"IFERROR(IF(PopisZaliha[[#This Row],[KOLIČINA]]<=PopisZaliha[[#This Row],[PONOVNA NARUDŽBA KOLIČINE]],1,0),0)","v":0}]
[null,"XR23423","Stavka 5","T098",{"$f":"IFERROR(VLOOKUP(PopisZaliha[[#This Row],['# REGALA]],TraženjeRegala[],3,FALSE),\"\")","v":"Redak 3, mjesto 1"},"Svaki",12,10,26,{"$f":"PopisZaliha[[#This Row],[KOLIČINA]]*PopisZaliha[[#This Row],[TROŠKOVI]]","v":312},{"$f":"IFERROR(IF(PopisZaliha[[#This Row],[KOLIČINA]]<=PopisZaliha[[#This Row],[PONOVNA NARUDŽBA KOLIČINE]],1,0),0)","v":0}]
[null,"PW98762","Stavka 6","T345",{"$f":"IFERROR(VLOOKUP(PopisZaliha[[#This Row],['# REGALA]],TraženjeRegala[],3,FALSE),\"\")","v":"Redak 2, mjesto 1"},"Svaki",7,10,50,{"$f":"PopisZaliha[[#This Row],[KOLIČINA]]*PopisZaliha[[#This Row],[TROŠKOVI]]","v":350},{"$f":"IFERROR(IF(PopisZaliha[[#This Row],[KOLIČINA]]<=PopisZaliha[[#This Row],[PONOVNA NARUDŽBA KOLIČINE]],1,0),0)","v":1}]
[null,"BM87684","Stavka 7","T349",{"$f":"IFERROR(VLOOKUP(PopisZaliha[[#This Row],['# REGALA]],TraženjeRegala[],3,FALSE),\"\")","v":"Redak 1, mjesto 2"},"Svaki",10,5,10,{"$f":"PopisZaliha[[#This Row],[KOLIČINA]]*PopisZaliha[[#This Row],[TROŠKOVI]]","v":100},{"$f":"IFERROR(IF(PopisZaliha[[#This Row],[KOLIČINA]]<=PopisZaliha[[#This Row],[PONOVNA NARUDŽBA KOLIČINE]],1,0),0)","v":0}]
[null,"BH67655","Stavka 8","T5789",{"$f":"IFERROR(VLOOKUP(PopisZaliha[[#This Row],['# REGALA]],TraženjeRegala[],3,FALSE),\"\")","v":"Redak 1, mjesto 1"},"Svaki",19,10,3,{"$f":"PopisZaliha[[#This Row],[KOLIČINA]]*PopisZaliha[[#This Row],[TROŠKOVI]]","v":57},{"$f":"IFERROR(IF(PopisZaliha[[#This Row],[KOLIČINA]]<=PopisZaliha[[#This Row],[PONOVNA NARUDŽBA KOLIČINE]],1,0),0)","v":0}]
[null,"WT98768","Stavka 9","T9875",{"$f":"IFERROR(VLOOKUP(PopisZaliha[[#This Row],['# REGALA]],TraženjeRegala[],3,FALSE),\"\")","v":"Redak 2, mjesto 2"},"Pakiranje (5 kom.)",20,30,14,{"$f":"PopisZaliha[[#This Row],[KOLIČINA]]*PopisZaliha[[#This Row],[TROŠKOVI]]","v":280},{"$f":"IFERROR(IF(PopisZaliha[[#This Row],[KOLIČINA]]<=PopisZaliha[[#This Row],[PONOVNA NARUDŽBA KOLIČINE]],1,0),0)","v":1}]
[null,"TS3456","Stavka 10","T349",{"$f":"IFERROR(VLOOKUP(PopisZaliha[[#This Row],['# REGALA]],TraženjeRegala[],3,FALSE),\"\")","v":"Redak 1, mjesto 2"},"Svaki",15,8,60,{"$f":"PopisZaliha[[#This Row],[KOLIČINA]]*PopisZaliha[[#This Row],[TROŠKOVI]]","v":900},{"$f":"IFERROR(IF(PopisZaliha[[#This Row],[KOLIČINA]]<=PopisZaliha[[#This Row],[PONOVNA NARUDŽBA KOLIČINE]],1,0),0)","v":0}]
[null,"WDG123","Stavka 11","T349",{"$f":"IFERROR(VLOOKUP(PopisZaliha[[#This Row],['# REGALA]],TraženjeRegala[],3,FALSE),\"\")","v":"Redak 1, mjesto 2"},"Svaki",25,15,8,{"$f":"PopisZaliha[[#This Row],[KOLIČINA]]*PopisZaliha[[#This Row],[TROŠKOVI]]","v":200},{"$f":"IFERROR(IF(PopisZaliha[[#This Row],[KOLIČINA]]<=PopisZaliha[[#This Row],[PONOVNA NARUDŽBA KOLIČINE]],1,0),0)","v":0}]

{"sheet":"Popis za odabir zaliha","index":1,"n_rows":9,"n_cols":9,"rows_kept":9,"cut":false,"hidden":false,"merged":[]}
[null,"POPIS ZA ODABIR ZALIHA"]
[null,null,"POPIS ZALIHA"]
[]
[null,"BROJ NARUDŽBE","SKU","KOLIČINA ZA ODABIR","DOSTUPNA KOLIČINA","OPIS STAVKE","JEDINICA","# REGALA","MJESTO"]
[null,"TP001-1","SP7875",3,{"$f":"IFERROR(VLOOKUP(PopisZaOdabirZaliha[SKU],PopisZaliha[],6,FALSE),\"\")","v":20},{"$f":"IFERROR(VLOOKUP(PopisZaOdabirZaliha[SKU],PopisZaliha[],2,FALSE),\"\")","v":"Stavka 1"},{"$f":"IFERROR(VLOOKUP(PopisZaOdabirZaliha[SKU],PopisZaliha[],5,FALSE),\"\")","v":"Svaki"},{"$f":"IFERROR(VLOOKUP(PopisZaOdabirZaliha[SKU],PopisZaliha[],3,FALSE),\"\")","v":"T345"},{"$f":"IFERROR(VLOOKUP(PopisZaOdabirZaliha[SKU],PopisZaliha[],4,FALSE),\"\")","v":"Redak 2, mjesto 1"}]
[null,"TP001-1","YE98767",1,{"$f":"IFERROR(VLOOKUP(PopisZaOdabirZaliha[SKU],PopisZaliha[],6,FALSE),\"\")","v":40},{"$f":"IFERROR(VLOOKUP(PopisZaOdabirZaliha[SKU],PopisZaliha[],2,FALSE),\"\")","v":"Stavka 4"},{"$f":"IFERROR(VLOOKUP(PopisZaOdabirZaliha[SKU],PopisZaliha[],5,FALSE),\"\")","v":"Kutija (10 kom.)"},{"$f":"IFERROR(VLOOKUP(PopisZaOdabirZaliha[SKU],PopisZaliha[],3,FALSE),\"\")","v":"T9876"},{"$f":"IFERROR(VLOOKUP(PopisZaOdabirZaliha[SKU],PopisZaliha[],4,FALSE),\"\")","v":"Redak 3, mjesto 2"}]
[null,"TP001-1","BM87684",2,{"$f":"IFERROR(VLOOKUP(PopisZaOdabirZaliha[SKU],PopisZaliha[],6,FALSE),\"\")","v":10},{"$f":"IFERROR(VLOOKUP(PopisZaOdabirZaliha[SKU],PopisZaliha[],2,FALSE),\"\")","v":"Stavka 7"},{"$f":"IFERROR(VLOOKUP(PopisZaOdabirZaliha[SKU],PopisZaliha[],5,FALSE),\"\")","v":"Svaki"},{"$f":"IFERROR(VLOOKUP(PopisZaOdabirZaliha[SKU],PopisZaliha[],3,FALSE),\"\")","v":"T349"},{"$f":"IFERROR(VLOOKUP(PopisZaOdabirZaliha[SKU],PopisZaliha[],4,FALSE),\"\")","v":"Redak 1, mjesto 2"}]
[null,"TP001-1","TS3456",6,{"$f":"IFERROR(VLOOKUP(PopisZaOdabirZaliha[SKU],PopisZaliha[],6,FALSE),\"\")","v":15},{"$f":"IFERROR(VLOOKUP(PopisZaOdabirZaliha[SKU],PopisZaliha[],2,FALSE),\"\")","v":"Stavka 10"},{"$f":"IFERROR(VLOOKUP(PopisZaOdabirZaliha[SKU],PopisZaliha[],5,FALSE),\"\")","v":"Svaki"},{"$f":"IFERROR(VLOOKUP(PopisZaOdabirZaliha[SKU],PopisZaliha[],3,FALSE),\"\")","v":"T349"},{"$f":"IFERROR(VLOOKUP(PopisZaOdabirZaliha[SKU],PopisZaliha[],4,FALSE),\"\")","v":"Redak 1, mjesto 2"}]
[null,"TP001-1","MK676554",3,{"$f":"IFERROR(VLOOKUP(PopisZaOdabirZaliha[SKU],PopisZaliha[],6,FALSE),\"\")","v":10},{"$f":"IFERROR(VLOOKUP(PopisZaOdabirZaliha[SKU],PopisZaliha[],2,FALSE),\"\")","v":"Stavka 3"},{"$f":"IFERROR(VLOOKUP(PopisZaOdabirZaliha[SKU],PopisZaliha[],5,FALSE),\"\")","v":"Svaki"},{"$f":"IFERROR(VLOOKUP(PopisZaOdabirZaliha[SKU],PopisZaliha[],3,FALSE),\"\")","v":"T5789"},{"$f":"IFERROR(VLOOKUP(PopisZaOdabirZaliha[SKU],PopisZaliha[],4,FALSE),\"\")","v":"Redak 1, mjesto 1"}]

{"sheet":"Traženje regala","index":2,"n_rows":11,"n_cols":7,"rows_kept":11,"cut":false,"hidden":false,"merged":[]}
[null,"TRAŽENJE REGALA"]
[null,"POPIS ZALIHA"]
[]
[null,"# REGALA","OPIS","MJESTO","ŠIRINA","VISINA","DULJINA"]
[null,"T345","Veliki regal","Redak 2, mjesto 1",50,10,10]
[null,"T5789","Mali regal","Redak 1, mjesto 1",25,5,5]
[null,"T9876","Veliki regal","Redak 3, mjesto 2",50,10,10]
[null,"T098","Srednji regal","Redak 3, mjesto 1",30,7,10]
[null,"T349","Mali regal","Redak 1, mjesto 2",25,5,5]
[null,"T5789","Veliki regal","Redak 4, mjesto 5",50,10,10]
[null,"T9875","Veliki regal","Redak 2, mjesto 2",50,10,10]